[Event "Titled Tuesday Blitz August 17 2021"]
[White "Bazarov, Konstantin"]
[Black "Tanenbaum, Zachary"]
[WhiteFideId "4137000"]
[BlackFideId "2060850"]
[WhiteElo "2122"]
[BlackElo "2165"]
[Result "0-1"]
[Round "06"]
[TimeControl "180+1"]
[Date "2021.08.17"]
[WhiteClock "0:00:01"]
[BlackClock "0:00:03"]

1. Nf3 {[%clk 0:03:00]}  d5 {[%clk 0:02:55]} 2. c3 {[%clk 0:03:01]}  Nf6 {[%clk 0:02:54]} 3. d3 {[%clk 0:03:02]}  Bf5 {[%clk 0:02:54]} 4. Nbd2 {[%clk 0:03:03]}  Nbd7 {[%clk 0:02:54]} 5. Qc2 {[%clk 0:02:59]}  e5 {[%clk 0:02:54]} 6. e4 {[%clk 0:02:57]}  Bg6 {[%clk 0:02:52]} 7. Nh4 {[%clk 0:02:53]}  Bc5 {[%clk 0:02:51]} 8. Nxg6 {[%clk 0:02:49]}  hxg6 {[%clk 0:02:52]} 9. Be2 {[%clk 0:02:48]}  c6 {[%clk 0:02:24]} 10. h3 {[%clk 0:02:43]}  Nf8 {[%clk 0:01:59]} 11. Nb3 {[%clk 0:02:41]}  Bb6 {[%clk 0:01:55]} 12. O-O {[%clk 0:02:24]}  Ne6 {[%clk 0:01:54]} 13. a4 {[%clk 0:02:21]}  Nh5 {[%clk 0:01:50]} 14. a5 {[%clk 0:02:19]}  Bc7 {[%clk 0:01:50]} 15. g3 {[%clk 0:02:13]}  Ng5 {[%clk 0:01:08]} 16. Kg2 {[%clk 0:02:07]}  Nxh3 {[%clk 0:01:06]} 17. Rh1 {[%clk 0:02:04]}  Ng5 {[%clk 0:00:34]} 18. Be3 {[%clk 0:02:00]}  Ne6 {[%clk 0:00:24]} 19. Bg4 {[%clk 0:01:42]}  Qf6 {[%clk 0:00:21]} 20. Qe2 {[%clk 0:01:31]}  O-O-O {[%clk 0:00:16]} 21. Bxh5 {[%clk 0:01:30]}  gxh5 {[%clk 0:00:16]} 22. Rxh5 {[%clk 0:01:30]}  g6 {[%clk 0:00:15]} 23. Rhh1 {[%clk 0:01:29]}  d4 {[%clk 0:00:14]} 24. Bd2 {[%clk 0:01:23]}  Qe7 {[%clk 0:00:10]} 25. a6 {[%clk 0:01:16]}  b6 {[%clk 0:00:11]} 26. Qf3 {[%clk 0:01:02]}  Qd7 {[%clk 0:00:11]} 27. cxd4 {[%clk 0:00:57]}  exd4 {[%clk 0:00:11]} 28. Rac1 {[%clk 0:00:51]}  c5 {[%clk 0:00:11]} 29. Qf6 {[%clk 0:00:48]}  Rxh1 {[%clk 0:00:09]} 30. Rxh1 {[%clk 0:00:48]}  Qb5 {[%clk 0:00:09]} 31. Nc1 {[%clk 0:00:46]}  Rd7 {[%clk 0:00:09]} 32. Rh8+ {[%clk 0:00:45]}  Bd8 {[%clk 0:00:09]} 33. Qe5 {[%clk 0:00:40]}  Qxb2 {[%clk 0:00:07]} 34. Bf4 {[%clk 0:00:37]}  Nxf4+ {[%clk 0:00:07]} 35. Qxf4 {[%clk 0:00:36]}  Qb5 {[%clk 0:00:06]} 36. e5 {[%clk 0:00:32]}  Qxa6 {[%clk 0:00:05]} 37. Rf8 {[%clk 0:00:28]}  Qb7+ {[%clk 0:00:05]} 38. f3 {[%clk 0:00:24]}  Qd5 {[%clk 0:00:05]} 39. Ne2 {[%clk 0:00:22]}  Kb7 {[%clk 0:00:05]} 40. Re8 {[%clk 0:00:19]}  Bc7 {[%clk 0:00:05]} 41. Qf6 {[%clk 0:00:18]}  Qc6 {[%clk 0:00:05]} 42. Qh8 {[%clk 0:00:17]}  a5 {[%clk 0:00:03]} 43. Nf4 {[%clk 0:00:16]}  Qb5 {[%clk 0:00:02]} 44. e6 {[%clk 0:00:16]}  fxe6 {[%clk 0:00:03]} 45. Nxe6 {[%clk 0:00:16]}  Qxd3 {[%clk 0:00:03]} 46. Nxc7 {[%clk 0:00:15]}  Qc2+ {[%clk 0:00:03]} 47. Kh3 {[%clk 0:00:14]}  Qf5+ {[%clk 0:00:03]} 48. Kg2 {[%clk 0:00:12]}  Rxc7 {[%clk 0:00:03]} 49. Rf8 {[%clk 0:00:11]}  Qc2+ {[%clk 0:00:03]} 50. Kh3 {[%clk 0:00:10]}  Ka6 {[%clk 0:00:04]} 51. Qg8 {[%clk 0:00:09]}  g5 {[%clk 0:00:03]} 52. Ra8+ {[%clk 0:00:08]}  Kb5 {[%clk 0:00:04]} 53. Qe8+ {[%clk 0:00:08]}  Kb4 {[%clk 0:00:04]} 54. Kg4 {[%clk 0:00:07]}  Rh7 {[%clk 0:00:03]} 55. Rb8 {[%clk 0:00:06]}  Kc3 {[%clk 0:00:02]} 56. Rxb6 {[%clk 0:00:06]}  c4 {[%clk 0:00:03]} 57. Rc6 {[%clk 0:00:05]}  d3 {[%clk 0:00:03]} 58. Qe6 {[%clk 0:00:04]}  Qb3 {[%clk 0:00:03]} 59. Qe1+ {[%clk 0:00:02]}  d2 {[%clk 0:00:03]} 60. Qe3+ {[%clk 0:00:01]}  Kc2 {[%clk 0:00:03]} 61. Rd6 {[%clk 0:00:01]}  Qxe3 {[%clk 0:00:03]} 0-1


[Site "https://www.chess.com"]

[Event "Titled Tuesday Blitz August 17 2021"]
[White "Benyahia, Safin"]
[Black "Pavlov, Danila"]
[WhiteFideId "7905556"]
[BlackFideId "34126594"]
[WhiteElo "1551"]
[BlackElo "2323"]
[Result "0-1"]
[Round "06"]
[TimeControl "180+1"]
[Date "2021.08.18"]
[WhiteClock "0:00:14"]
[BlackClock "0:00:21"]

1. e4 {[%clk 0:02:56]}  e6 {[%clk 0:02:59]} 2. d4 {[%clk 0:02:53]}  d5 {[%clk 0:03:00]} 3. exd5 {[%clk 0:02:52]}  exd5 {[%clk 0:03:01]} 4. c4 {[%clk 0:02:52]}  dxc4 {[%clk 0:03:00]} 5. Bxc4 {[%clk 0:02:49]}  Nf6 {[%clk 0:03:00]} 6. Nf3 {[%clk 0:02:49]}  Bd6 {[%clk 0:03:00]} 7. Nc3 {[%clk 0:02:47]}  O-O {[%clk 0:03:00]} 8. O-O {[%clk 0:02:46]}  Nc6 {[%clk 0:03:00]} 9. Bg5 {[%clk 0:02:44]}  Bg4 {[%clk 0:02:49]} 10. Nd5 {[%clk 0:02:38]}  Be7 {[%clk 0:02:31]} 11. Nxe7+ {[%clk 0:02:31]}  Qxe7 {[%clk 0:02:32]} 12. Re1 {[%clk 0:02:31]}  Qd6 {[%clk 0:02:30]} 13. d5 {[%clk 0:02:27]}  Bxf3 {[%clk 0:02:19]} 14. Qxf3 {[%clk 0:02:19]}  Ne5 {[%clk 0:02:19]} 15. Qc3 {[%clk 0:01:54]}  Nxc4 {[%clk 0:02:12]} 16. Qxc4 {[%clk 0:01:54]}  Nxd5 {[%clk 0:02:06]} 17. Rad1 {[%clk 0:01:53]}  Rfe8 {[%clk 0:02:06]} 18. Rxe8+ {[%clk 0:01:42]}  Rxe8 {[%clk 0:02:07]} 19. h3 {[%clk 0:01:22]}  h6 {[%clk 0:01:54]} 20. Bf4 {[%clk 0:00:50]}  Qxf4 {[%clk 0:01:31]} 21. Qxd5 {[%clk 0:00:48]}  Re2 {[%clk 0:01:21]} 22. Qd8+ {[%clk 0:00:42]}  Kh7 {[%clk 0:01:20]} 23. Qd3+ {[%clk 0:00:42]}  Qe4 {[%clk 0:01:21]} 24. Qxe4+ {[%clk 0:00:40]}  Rxe4 {[%clk 0:01:22]} 25. Rd7 {[%clk 0:00:40]}  Re1+ {[%clk 0:01:00]} 26. Kh2 {[%clk 0:00:38]}  Re2 {[%clk 0:00:43]} 27. Rxc7 {[%clk 0:00:35]}  Rxb2 {[%clk 0:00:42]} 28. Rxf7 {[%clk 0:00:33]}  Kg6 {[%clk 0:00:42]} 29. Rd7 {[%clk 0:00:21]}  Rxf2 {[%clk 0:00:32]} 30. a4 {[%clk 0:00:20]}  Ra2 {[%clk 0:00:27]} 31. Rxb7 {[%clk 0:00:19]}  Rxa4 {[%clk 0:00:27]} 32. Rb2 {[%clk 0:00:17]}  Ra6 {[%clk 0:00:26]} 33. Rd2 {[%clk 0:00:17]}  Re6 {[%clk 0:00:25]} 34. Rc2 {[%clk 0:00:17]}  a5 {[%clk 0:00:25]} 35. Rc5 {[%clk 0:00:17]}  Ra6 {[%clk 0:00:25]} 36. Rc2 {[%clk 0:00:16]}  Kf5 {[%clk 0:00:25]} 37. Kg3 {[%clk 0:00:16]}  Ke4 {[%clk 0:00:25]} 38. Kf2 {[%clk 0:00:16]}  Kd3 {[%clk 0:00:25]} 39. Rc7 {[%clk 0:00:16]}  a4 {[%clk 0:00:24]} 40. Rxg7 {[%clk 0:00:16]}  a3 {[%clk 0:00:24]} 41. Rd7+ {[%clk 0:00:16]}  Kc4 {[%clk 0:00:24]} 42. Rd1 {[%clk 0:00:14]}  Kc3 {[%clk 0:00:23]} 43. Re1 {[%clk 0:00:14]}  a2 {[%clk 0:00:23]} 44. Re3+ {[%clk 0:00:14]}  Kd4 {[%clk 0:00:21]} 0-1


[Site "https://www.chess.com"]

[Event "Titled Tuesday Blitz August 17 2021"]
[White "Bok, Benjamin"]
[Black "Steinberg, Nitzan"]
[WhiteFideId "1017063"]
[BlackFideId "2801795"]
[WhiteElo "2658"]
[BlackElo "2440"]
[Result "1/2-1/2"]
[Round "06"]
[TimeControl "180+1"]
[Date "2021.08.17"]
[WhiteClock "0:00:04"]
[BlackClock "0:00:04"]

1. d4 {[%clk 0:03:00]}  d5 {[%clk 0:02:59]} 2. c4 {[%clk 0:03:01]}  c6 {[%clk 0:03:00]} 3. Nc3 {[%clk 0:03:00]}  Nf6 {[%clk 0:03:00]} 4. e3 {[%clk 0:03:00]}  e6 {[%clk 0:02:58]} 5. Nf3 {[%clk 0:03:00]}  Nbd7 {[%clk 0:02:58]} 6. Qc2 {[%clk 0:03:01]}  Bd6 {[%clk 0:02:58]} 7. b3 {[%clk 0:03:01]}  O-O {[%clk 0:02:57]} 8. Be2 {[%clk 0:03:02]}  a6 {[%clk 0:02:53]} 9. O-O {[%clk 0:03:01]}  b5 {[%clk 0:02:47]} 10. Bb2 {[%clk 0:03:00]}  bxc4 {[%clk 0:02:34]} 11. bxc4 {[%clk 0:03:01]}  a5 {[%clk 0:02:35]} 12. e4 {[%clk 0:02:58]}  dxe4 {[%clk 0:02:26]} 13. Nxe4 {[%clk 0:02:59]}  Bc7 {[%clk 0:02:20]} 14. Rad1 {[%clk 0:02:51]}  Rb8 {[%clk 0:02:17]} 15. Ba3 {[%clk 0:02:47]}  Nxe4 {[%clk 0:01:50]} 16. Qxe4 {[%clk 0:02:28]}  Nf6 {[%clk 0:01:50]} 17. Qxc6 {[%clk 0:02:21]}  Bd7 {[%clk 0:01:49]} 18. Qc5 {[%clk 0:02:20]}  Re8 {[%clk 0:01:50]} 19. Qg5 {[%clk 0:02:13]}  Ba4 {[%clk 0:01:41]} 20. Rb1 {[%clk 0:02:06]}  Ne4 {[%clk 0:01:34]} 21. Qe3 {[%clk 0:02:01]}  Nd6 {[%clk 0:01:33]} 22. Bd3 {[%clk 0:01:39]}  Bc6 {[%clk 0:01:24]} 23. Ne5 {[%clk 0:01:35]}  Ba8 {[%clk 0:01:24]} 24. Rxb8 {[%clk 0:01:29]}  Bxb8 {[%clk 0:01:20]} 25. Qh3 {[%clk 0:01:18]}  g6 {[%clk 0:01:12]} 26. Rd1 {[%clk 0:01:09]}  Nf5 {[%clk 0:01:11]} 27. Nxf7 {[%clk 0:00:44]}  Kxf7 {[%clk 0:01:10]} 28. Qxh7+ {[%clk 0:00:43]}  Kf6 {[%clk 0:01:10]} 29. Bxf5 {[%clk 0:00:25]}  exf5 {[%clk 0:00:46]} 30. Bb2 {[%clk 0:00:25]}  Re2 {[%clk 0:00:37]} 31. Ba1 {[%clk 0:00:24]}  Qe7 {[%clk 0:00:24]} 32. d5+ {[%clk 0:00:21]}  Be5 {[%clk 0:00:25]} 33. Qxe7+ {[%clk 0:00:05]}  Kxe7 {[%clk 0:00:25]} 34. Kf1 {[%clk 0:00:06]}  Re4 {[%clk 0:00:19]} 35. f3 {[%clk 0:00:06]}  Re3 {[%clk 0:00:19]} 36. Bxe5 {[%clk 0:00:05]}  Rxe5 {[%clk 0:00:19]} 37. Rb1 {[%clk 0:00:06]}  Kd7 {[%clk 0:00:08]} 38. Kf2 {[%clk 0:00:06]}  Re8 {[%clk 0:00:07]} 39. Rb6 {[%clk 0:00:06]}  Rc8 {[%clk 0:00:06]} 40. Ra6 {[%clk 0:00:03]}  Bb7 {[%clk 0:00:06]} 41. Ra7 {[%clk 0:00:04]}  Kc7 {[%clk 0:00:05]} 42. Rxa5 {[%clk 0:00:04]}  Kb6 {[%clk 0:00:06]} 43. Rb5+ {[%clk 0:00:04]}  Ka7 {[%clk 0:00:06]} 44. Rb4 {[%clk 0:00:04]}  Ba6 {[%clk 0:00:06]} 45. d6 {[%clk 0:00:03]}  Rc6 {[%clk 0:00:04]} 46. c5 {[%clk 0:00:02]}  Rxc5 {[%clk 0:00:04]} 47. Rd4 {[%clk 0:00:03]}  Rc8 {[%clk 0:00:05]} 48. d7 {[%clk 0:00:02]}  Rd8 {[%clk 0:00:05]} 49. Rd6 {[%clk 0:00:03]}  Bb5 {[%clk 0:00:05]} 50. Rxg6 {[%clk 0:00:03]}  Bxd7 {[%clk 0:00:05]} 51. Rd6 {[%clk 0:00:03]}  Kb7 {[%clk 0:00:06]} 52. h4 {[%clk 0:00:04]}  Kc7 {[%clk 0:00:06]} 53. Rd2 {[%clk 0:00:04]}  Ra8 {[%clk 0:00:07]} 54. Ke3 {[%clk 0:00:04]}  Be6 {[%clk 0:00:07]} 55. Kf4 {[%clk 0:00:04]}  Bd7 {[%clk 0:00:04]} 56. h5 {[%clk 0:00:04]}  Kd8 {[%clk 0:00:04]} 57. h6 {[%clk 0:00:03]}  Ke7 {[%clk 0:00:04]} 58. a3 {[%clk 0:00:01]}  Be6 {[%clk 0:00:04]} 59. Kg5 {[%clk 0:00:01]}  Rg8+ {[%clk 0:00:03]} 60. Kf4 {[%clk 0:00:02]}  Kf6 {[%clk 0:00:04]} 61. g3 {[%clk 0:00:02]}  Rh8 {[%clk 0:00:05]} 62. Rh2 {[%clk 0:00:02]}  Ra8 {[%clk 0:00:04]} 63. h7 {[%clk 0:00:03]}  Rh8 {[%clk 0:00:05]} 64. Rh6+ {[%clk 0:00:02]}  Ke7 {[%clk 0:00:05]} 65. Ke5 {[%clk 0:00:03]}  Bd7 {[%clk 0:00:05]} 66. a4 {[%clk 0:00:03]}  Bxa4 {[%clk 0:00:04]} 67. g4 {[%clk 0:00:03]}  fxg4 {[%clk 0:00:04]} 68. fxg4 {[%clk 0:00:04]}  Bc2 {[%clk 0:00:05]} 69. g5 {[%clk 0:00:04]}  Rxh7 {[%clk 0:00:03]} 70. Rxh7+ {[%clk 0:00:05]}  Bxh7 {[%clk 0:00:04]} 71. g6 {[%clk 0:00:04]}  Bxg6 {[%clk 0:00:04]} 1/2-1/2


[Site "https://www.chess.com"]

[Event "Titled Tuesday Blitz August 17 2021"]
[White "Chernobay, Artem"]
[Black "Pichot, Alan"]
[WhiteFideId "4167406"]
[BlackFideId "110973"]
[WhiteElo "2480"]
[BlackElo "2622"]
[Result "0-1"]
[Round "06"]
[TimeControl "180+1"]
[Date "2021.08.17"]
[WhiteClock "0:01:13"]
[BlackClock "0:00:43"]

1. d4 {[%clk 0:02:51]}  Nf6 {[%clk 0:02:58]} 2. c4 {[%clk 0:02:51]}  e6 {[%clk 0:02:57]} 3. Nf3 {[%clk 0:02:50]}  d5 {[%clk 0:02:56]} 4. g3 {[%clk 0:02:47]}  Be7 {[%clk 0:02:55]} 5. Bg2 {[%clk 0:02:47]}  O-O {[%clk 0:02:54]} 6. O-O {[%clk 0:02:48]}  dxc4 {[%clk 0:02:54]} 7. Qc2 {[%clk 0:02:47]}  a6 {[%clk 0:02:54]} 8. a4 {[%clk 0:02:47]}  Bd7 {[%clk 0:02:55]} 9. Qxc4 {[%clk 0:02:46]}  Bc6 {[%clk 0:02:55]} 10. Bf4 {[%clk 0:02:46]}  a5 {[%clk 0:02:51]} 11. Nc3 {[%clk 0:02:45]}  Na6 {[%clk 0:02:51]} 12. Rfe1 {[%clk 0:02:42]}  Nb4 {[%clk 0:02:48]} 13. Rac1 {[%clk 0:02:39]}  Bxf3 {[%clk 0:02:42]} 14. Bxf3 {[%clk 0:02:31]}  c6 {[%clk 0:02:40]} 15. e4 {[%clk 0:02:28]}  Rc8 {[%clk 0:02:26]} 16. Rcd1 {[%clk 0:02:28]}  Qd7 {[%clk 0:02:14]} 17. Kg2 {[%clk 0:02:27]}  Rfd8 {[%clk 0:02:14]} 18. h4 {[%clk 0:02:27]}  h6 {[%clk 0:02:14]} 19. Qe2 {[%clk 0:02:23]}  Bf8 {[%clk 0:02:08]} 20. Rd2 {[%clk 0:02:22]}  Qe8 {[%clk 0:02:01]} 21. Be5 {[%clk 0:02:21]}  Nd7 {[%clk 0:02:00]} 22. Bf4 {[%clk 0:02:20]}  e5 {[%clk 0:01:56]} 23. dxe5 {[%clk 0:02:04]}  Nxe5 {[%clk 0:01:56]} 24. Rxd8 {[%clk 0:01:59]}  Rxd8 {[%clk 0:01:56]} 25. Bg4 {[%clk 0:02:00]}  Nbd3 {[%clk 0:01:48]} 26. Rd1 {[%clk 0:01:50]}  Nxf4+ {[%clk 0:01:48]} 27. gxf4 {[%clk 0:01:51]}  Ng6 {[%clk 0:01:48]} 28. Kg3 {[%clk 0:01:36]}  Rxd1 {[%clk 0:01:24]} 29. Qxd1 {[%clk 0:01:35]}  Qe7 {[%clk 0:01:07]} 30. h5 {[%clk 0:01:35]}  Qh4+ {[%clk 0:01:07]} 31. Kf3 {[%clk 0:01:35]}  Nxf4 {[%clk 0:01:01]} 32. Kxf4 {[%clk 0:01:34]}  Qxf2+ {[%clk 0:01:01]} 33. Bf3 {[%clk 0:01:17]}  Bd6+ {[%clk 0:00:46]} 34. Kf5 {[%clk 0:01:13]}  Qg3 {[%clk 0:00:43]} 0-1


[Site "https://www.chess.com"]

[Event "Titled Tuesday Blitz August 17 2021"]
[White "Chirila, Ioan-Cristian"]
[Black "Shtyka, Sergey"]
[WhiteFideId "1211668"]
[BlackFideId "4138465"]
[WhiteElo "2445"]
[BlackElo "2064"]
[Result "1-0"]
[Round "06"]
[TimeControl "180+1"]
[Date "2021.08.17"]
[WhiteClock "0:00:22"]
[BlackClock "0:00:02"]

1. d4 {[%clk 0:03:00]}  c5 {[%clk 0:02:59]} 2. d5 {[%clk 0:02:56]}  e5 {[%clk 0:02:59]} 3. c4 {[%clk 0:02:55]}  d6 {[%clk 0:02:59]} 4. Nc3 {[%clk 0:02:55]}  Be7 {[%clk 0:02:59]} 5. g3 {[%clk 0:02:55]}  Nf6 {[%clk 0:02:58]} 6. Bg2 {[%clk 0:02:55]}  O-O {[%clk 0:02:58]} 7. e4 {[%clk 0:02:46]}  Nbd7 {[%clk 0:02:57]} 8. Nge2 {[%clk 0:02:41]}  a6 {[%clk 0:02:57]} 9. a4 {[%clk 0:02:40]}  b6 {[%clk 0:02:57]} 10. O-O {[%clk 0:02:40]}  Rb8 {[%clk 0:02:57]} 11. h3 {[%clk 0:02:33]}  Ne8 {[%clk 0:02:54]} 12. f4 {[%clk 0:02:33]}  exf4 {[%clk 0:02:53]} 13. gxf4 {[%clk 0:02:31]}  Bf6 {[%clk 0:02:49]} 14. Be3 {[%clk 0:02:26]}  Nc7 {[%clk 0:02:46]} 15. Qd3 {[%clk 0:02:20]}  Re8 {[%clk 0:02:40]} 16. Rae1 {[%clk 0:02:19]}  Nf8 {[%clk 0:02:32]} 17. Ng3 {[%clk 0:02:17]}  Ng6 {[%clk 0:02:26]} 18. Nh5 {[%clk 0:02:16]}  Bh4 {[%clk 0:02:23]} 19. Re2 {[%clk 0:02:12]}  Bd7 {[%clk 0:02:21]} 20. e5 {[%clk 0:01:49]}  dxe5 {[%clk 0:02:16]} 21. f5 {[%clk 0:01:49]}  e4 {[%clk 0:02:05]} 22. Nxe4 {[%clk 0:01:16]}  Ne5 {[%clk 0:02:04]} 23. Qc3 {[%clk 0:01:11]}  Bxa4 {[%clk 0:01:52]} 24. Bf4 {[%clk 0:00:53]}  f6 {[%clk 0:01:17]} 25. b3 {[%clk 0:00:53]}  Bd7 {[%clk 0:01:14]} 26. Nd6 {[%clk 0:00:53]}  Re7 {[%clk 0:01:03]} 27. Bxe5 {[%clk 0:00:53]}  fxe5 {[%clk 0:01:04]} 28. f6 {[%clk 0:00:53]}  gxf6 {[%clk 0:00:56]} 29. Re4 {[%clk 0:00:42]}  Bg5 {[%clk 0:00:40]} 30. h4 {[%clk 0:00:43]}  Bh6 {[%clk 0:00:36]} 31. Nxf6+ {[%clk 0:00:37]}  Kh8 {[%clk 0:00:35]} 32. Rxe5 {[%clk 0:00:37]}  Bg7 {[%clk 0:00:31]} 33. Rg5 {[%clk 0:00:31]}  Bc8 {[%clk 0:00:18]} 34. Nfe8 {[%clk 0:00:22]}  Bxc3 {[%clk 0:00:02]} 35. Rf8# {[%clk 0:00:22]} 1-0


[Site "https://www.chess.com"]

[Event "Titled Tuesday Blitz August 17 2021"]
[White "Costachi, Mihnea"]
[Black "Janaszak, Dawid"]
[WhiteFideId "1217518"]
[BlackFideId "1119206"]
[WhiteElo "2482"]
[BlackElo "2332"]
[Result "1-0"]
[Round "06"]
[TimeControl "180+1"]
[Date "2021.08.17"]
[WhiteClock "0:00:41"]
[BlackClock "0:00:13"]

1. d4 {[%clk 0:03:00]}  d5 {[%clk 0:02:57]} 2. c4 {[%clk 0:03:01]}  e6 {[%clk 0:02:56]} 3. Nc3 {[%clk 0:03:00]}  Nf6 {[%clk 0:02:54]} 4. cxd5 {[%clk 0:03:01]}  Nxd5 {[%clk 0:02:55]} 5. e4 {[%clk 0:03:00]}  Nxc3 {[%clk 0:02:54]} 6. bxc3 {[%clk 0:03:01]}  c5 {[%clk 0:02:55]} 7. Nf3 {[%clk 0:03:02]}  cxd4 {[%clk 0:02:55]} 8. cxd4 {[%clk 0:03:03]}  Bb4+ {[%clk 0:02:56]} 9. Bd2 {[%clk 0:03:03]}  Bxd2+ {[%clk 0:02:56]} 10. Qxd2 {[%clk 0:03:04]}  O-O {[%clk 0:02:57]} 11. Bc4 {[%clk 0:03:05]}  b6 {[%clk 0:02:54]} 12. O-O {[%clk 0:03:05]}  Bb7 {[%clk 0:02:54]} 13. d5 {[%clk 0:03:05]}  exd5 {[%clk 0:02:54]} 14. Bxd5 {[%clk 0:03:06]}  Bxd5 {[%clk 0:02:52]} 15. exd5 {[%clk 0:03:07]}  Nd7 {[%clk 0:02:52]} 16. a4 {[%clk 0:03:02]}  Nf6 {[%clk 0:02:51]} 17. d6 {[%clk 0:03:02]}  Ne4 {[%clk 0:02:50]} 18. Qf4 {[%clk 0:02:53]}  Re8 {[%clk 0:02:39]} 19. Rfe1 {[%clk 0:02:39]}  Qf6 {[%clk 0:02:13]} 20. Qxf6 {[%clk 0:02:35]}  Nxf6 {[%clk 0:02:13]} 21. Red1 {[%clk 0:02:30]}  Rad8 {[%clk 0:02:07]} 22. a5 {[%clk 0:02:30]}  Re6 {[%clk 0:02:04]} 23. axb6 {[%clk 0:02:30]}  axb6 {[%clk 0:02:05]} 24. Ra6 {[%clk 0:02:23]}  h6 {[%clk 0:01:37]} 25. Rxb6 {[%clk 0:02:21]}  Ne4 {[%clk 0:01:38]} 26. h4 {[%clk 0:02:05]}  Rexd6 {[%clk 0:01:36]} 27. Rdxd6 {[%clk 0:02:03]}  Rxd6 {[%clk 0:01:36]} 28. Rb8+ {[%clk 0:02:03]}  Kh7 {[%clk 0:01:36]} 29. Rb7 {[%clk 0:02:02]}  Kg8 {[%clk 0:01:28]} 30. Ne5 {[%clk 0:01:56]}  Rd1+ {[%clk 0:01:20]} 31. Kh2 {[%clk 0:01:54]}  Nxf2 {[%clk 0:00:57]} 32. Rb8+ {[%clk 0:01:54]}  Kh7 {[%clk 0:00:56]} 33. Nxf7 {[%clk 0:01:55]}  Ng4+ {[%clk 0:00:36]} 34. Kg3 {[%clk 0:01:53]}  h5 {[%clk 0:00:36]} 35. Ng5+ {[%clk 0:01:48]}  Kg6 {[%clk 0:00:36]} 36. Rb6+ {[%clk 0:01:48]}  Kf5 {[%clk 0:00:32]} 37. Rb5+ {[%clk 0:01:46]}  Kg6 {[%clk 0:00:31]} 38. Ne6 {[%clk 0:01:45]}  Rd3+ {[%clk 0:00:28]} 39. Kf4 {[%clk 0:01:45]}  Nf6 {[%clk 0:00:27]} 40. Rg5+ {[%clk 0:01:40]}  Kf7 {[%clk 0:00:27]} 41. Nxg7 {[%clk 0:01:37]}  Rd4+ {[%clk 0:00:24]} 42. Kf3 {[%clk 0:01:28]}  Rxh4 {[%clk 0:00:24]} 43. Nf5 {[%clk 0:01:28]}  Ra4 {[%clk 0:00:21]} 44. Rg7+ {[%clk 0:01:21]}  Ke6 {[%clk 0:00:20]} 45. Ne3 {[%clk 0:01:21]}  Ra3 {[%clk 0:00:18]} 46. Kf4 {[%clk 0:01:15]}  Ra4+ {[%clk 0:00:18]} 47. Kf3 {[%clk 0:01:09]}  Ra3 {[%clk 0:00:18]} 48. Ke2 {[%clk 0:00:59]}  Ra2+ {[%clk 0:00:17]} 49. Kf1 {[%clk 0:00:59]}  Ra3 {[%clk 0:00:16]} 50. Kf2 {[%clk 0:00:59]}  Ra2+ {[%clk 0:00:17]} 51. Kg1 {[%clk 0:00:59]}  Ra3 {[%clk 0:00:17]} 52. Nc4 {[%clk 0:00:58]}  Ra1+ {[%clk 0:00:16]} 53. Kh2 {[%clk 0:00:58]}  Ng4+ {[%clk 0:00:16]} 54. Kg3 {[%clk 0:00:59]}  Kf6 {[%clk 0:00:17]} 55. Rb7 {[%clk 0:00:57]}  Rc1 {[%clk 0:00:16]} 56. Rb6+ {[%clk 0:00:56]}  Kg5 {[%clk 0:00:16]} 57. Rb5+ {[%clk 0:00:56]}  Kg6 {[%clk 0:00:16]} 58. Nd2 {[%clk 0:00:52]}  Rc3+ {[%clk 0:00:15]} 59. Kh4 {[%clk 0:00:53]}  Nf6 {[%clk 0:00:15]} 60. Rb6 {[%clk 0:00:51]}  Kf5 {[%clk 0:00:15]} 61. Rxf6+ {[%clk 0:00:50]}  Ke5 {[%clk 0:00:15]} 62. Rg6 {[%clk 0:00:45]}  Rc2 {[%clk 0:00:15]} 63. Nf3+ {[%clk 0:00:45]}  Kf4 {[%clk 0:00:15]} 64. Kxh5 {[%clk 0:00:45]}  Rc8 {[%clk 0:00:14]} 65. Rg4+ {[%clk 0:00:41]}  Kf5 {[%clk 0:00:14]} 66. Kh4 {[%clk 0:00:41]}  Rc1 {[%clk 0:00:13]} 67. Kg3 {[%clk 0:00:40]}  Rc2 {[%clk 0:00:13]} 68. Rf4+ {[%clk 0:00:41]} 1-0


[Site "https://www.chess.com"]

[Event "Titled Tuesday Blitz August 17 2021"]
[White "De Silva, L M S T"]
[Black "Adury, Anant"]
[WhiteFideId "9953698"]
[BlackFideId "30964687"]
[WhiteElo "1621"]
[BlackElo "2321"]
[Result "1-0"]
[Round "06"]
[TimeControl "180+1"]
[Date "2021.08.17"]
[WhiteClock "0:01:02"]
[BlackClock "0:00:22"]

1. e4 {[%clk 0:03:00]}  c5 {[%clk 0:02:58]} 2. Nf3 {[%clk 0:03:00]}  d6 {[%clk 0:02:58]} 3. Bb5+ {[%clk 0:03:00]}  Bd7 {[%clk 0:02:58]} 4. Bxd7+ {[%clk 0:03:01]}  Qxd7 {[%clk 0:02:59]} 5. c4 {[%clk 0:03:01]}  Nc6 {[%clk 0:02:50]} 6. d4 {[%clk 0:03:01]}  cxd4 {[%clk 0:02:51]} 7. Nxd4 {[%clk 0:03:02]}  g6 {[%clk 0:02:50]} 8. Be3 {[%clk 0:02:59]}  Bg7 {[%clk 0:02:48]} 9. Nc3 {[%clk 0:02:59]}  Nf6 {[%clk 0:02:46]} 10. f3 {[%clk 0:02:59]}  O-O {[%clk 0:02:45]} 11. O-O {[%clk 0:02:59]}  a6 {[%clk 0:02:45]} 12. a4 {[%clk 0:02:58]}  e6 {[%clk 0:02:44]} 13. Qd2 {[%clk 0:02:52]}  d5 {[%clk 0:02:23]} 14. Nxc6 {[%clk 0:02:51]}  bxc6 {[%clk 0:02:22]} 15. cxd5 {[%clk 0:02:51]}  cxd5 {[%clk 0:02:17]} 16. e5 {[%clk 0:02:52]}  Ne8 {[%clk 0:02:17]} 17. f4 {[%clk 0:02:52]}  Nc7 {[%clk 0:02:18]} 18. Ne4 {[%clk 0:02:48]}  Rfd8 {[%clk 0:02:12]} 19. Rfd1 {[%clk 0:02:47]}  Ne8 {[%clk 0:02:07]} 20. Nc5 {[%clk 0:02:46]}  Qe7 {[%clk 0:02:05]} 21. Bd4 {[%clk 0:02:46]}  Rdc8 {[%clk 0:02:05]} 22. b4 {[%clk 0:02:45]}  a5 {[%clk 0:02:03]} 23. Rab1 {[%clk 0:02:36]}  axb4 {[%clk 0:02:03]} 24. Qxb4 {[%clk 0:02:37]}  Nc7 {[%clk 0:01:59]} 25. a5 {[%clk 0:02:32]}  Bf8 {[%clk 0:01:51]} 26. Qb6 {[%clk 0:02:17]}  Qe8 {[%clk 0:01:43]} 27. Nb7 {[%clk 0:02:05]}  Na6 {[%clk 0:01:28]} 28. Rdc1 {[%clk 0:01:36]}  Rxc1+ {[%clk 0:01:20]} 29. Rxc1 {[%clk 0:01:36]}  Qa4 {[%clk 0:01:15]} 30. Nd6 {[%clk 0:01:19]}  Rb8 {[%clk 0:01:07]} 31. Qa7 {[%clk 0:01:19]}  Bxd6 {[%clk 0:00:35]} 32. exd6 {[%clk 0:01:20]}  Rd8 {[%clk 0:00:32]} 33. Qb6 {[%clk 0:01:05]}  Rd7 {[%clk 0:00:22]} 34. Rc8+ {[%clk 0:01:02]} 1-0


[Site "https://www.chess.com"]